[Event "Titled Tuesday Blitz April 25 Early 2023"]
[White "Seo, Jung Min"]
[Black "Begunov, Konstantin"]
[WhiteFideId "1734687"]
[BlackFideId "4118510"]
[WhiteElo "2468"]
[BlackElo "2087"]
[Result "1-0"]
[Round "06"]
[TimeControl "180+2"]
[Date "2023.04.25"]
[WhiteClock "0:00:51"]
[BlackClock "0:00:04"]

1. e4 {[%clk 0:02:59]}  c5 {[%clk 0:02:59]} 2. Nf3 {[%clk 0:02:59]}  d6 {[%clk 0:03:00]} 3. Bb5+ {[%clk 0:02:57]}  Bd7 {[%clk 0:02:59]} 4. c4 {[%clk 0:02:57]}  Bxb5 {[%clk 0:02:58]} 5. cxb5 {[%clk 0:02:57]}  Nf6 {[%clk 0:02:57]} 6. Nc3 {[%clk 0:02:57]}  a6 {[%clk 0:02:58]} 7. bxa6 {[%clk 0:02:55]}  Nxa6 {[%clk 0:02:54]} 8. O-O {[%clk 0:02:55]}  e5 {[%clk 0:02:50]} 9. d3 {[%clk 0:02:54]}  Be7 {[%clk 0:02:50]} 10. a4 {[%clk 0:02:53]}  Nb4 {[%clk 0:02:47]} 11. b3 {[%clk 0:02:44]}  O-O {[%clk 0:02:45]} 12. Bg5 {[%clk 0:02:42]}  Ne8 {[%clk 0:02:34]} 13. Be3 {[%clk 0:02:41]}  Nc7 {[%clk 0:02:31]} 14. Qe2 {[%clk 0:02:41]}  f5 {[%clk 0:02:21]} 15. Rfd1 {[%clk 0:02:32]}  Qd7 {[%clk 0:02:18]} 16. Ne1 {[%clk 0:02:16]}  Qe6 {[%clk 0:02:06]} 17. Rab1 {[%clk 0:02:14]}  f4 {[%clk 0:01:49]} 18. Bc1 {[%clk 0:02:13]}  g5 {[%clk 0:01:47]} 19. Qh5 {[%clk 0:02:11]}  g4 {[%clk 0:01:35]} 20. f3 {[%clk 0:02:10]}  gxf3 {[%clk 0:01:27]} 21. Nxf3 {[%clk 0:02:10]}  Kh8 {[%clk 0:01:24]} 22. Ba3 {[%clk 0:02:07]}  Nc2 {[%clk 0:01:19]} 23. Bc1 {[%clk 0:02:06]}  Rg8 {[%clk 0:01:19]} 24. Rb2 {[%clk 0:02:05]}  Nd4 {[%clk 0:01:13]} 25. Nxd4 {[%clk 0:02:05]}  cxd4 {[%clk 0:01:14]} 26. Ne2 {[%clk 0:02:04]}  Rg5 {[%clk 0:01:12]} 27. Qf3 {[%clk 0:02:04]}  Rag8 {[%clk 0:01:10]} 28. g3 {[%clk 0:02:04]}  Qh3 {[%clk 0:01:02]} 29. Nxf4 {[%clk 0:01:49]}  exf4 {[%clk 0:00:37]} 30. Bxf4 {[%clk 0:01:49]}  R5g6 {[%clk 0:00:29]} 31. e5 {[%clk 0:01:47]}  Ne6 {[%clk 0:00:24]} 32. exd6 {[%clk 0:01:47]}  Nxf4 {[%clk 0:00:24]} 33. Qxf4 {[%clk 0:01:46]}  Rxg3+ {[%clk 0:00:19]} 34. Kh1 {[%clk 0:01:43]}  Rf3 {[%clk 0:00:14]} 35. Qe5+ {[%clk 0:01:35]}  Bf6 {[%clk 0:00:14]} 36. Qe2 {[%clk 0:01:35]}  Qf5 {[%clk 0:00:11]} 37. Rc2 {[%clk 0:01:31]}  Be5 {[%clk 0:00:10]} 38. Rc5 {[%clk 0:01:28]}  Rf2 {[%clk 0:00:08]} 39. Qxe5+ {[%clk 0:01:28]}  Qxe5 {[%clk 0:00:07]} 40. Rxe5 {[%clk 0:01:28]}  Rgg2 {[%clk 0:00:04]} 41. Rh5 {[%clk 0:01:27]}  Rg6 {[%clk 0:00:02]} 42. Re1 {[%clk 0:01:15]}  Rxd6 {[%clk 0:00:02]} 43. Kg1 {[%clk 0:01:15]}  Rd2 {[%clk 0:00:02]} 44. Re8+ {[%clk 0:01:11]}  Kg7 {[%clk 0:00:02]} 45. Re7+ {[%clk 0:01:12]}  Kg6 {[%clk 0:00:01]} 46. Rhxh7 {[%clk 0:01:11]}  Rf6 {[%clk 0:00:02]} 47. Reg7+ {[%clk 0:01:10]}  Kf5 {[%clk 0:00:03]} 48. Rf7 {[%clk 0:01:08]}  Rxd3 {[%clk 0:00:03]} 49. Rxf6+ {[%clk 0:01:08]}  Kxf6 {[%clk 0:00:04]} 50. Rxb7 {[%clk 0:01:08]}  Ke5 {[%clk 0:00:03]} 51. Kf2 {[%clk 0:01:09]}  Rd2+ {[%clk 0:00:04]} 52. Ke1 {[%clk 0:01:09]}  Rxh2 {[%clk 0:00:03]} 53. b4 {[%clk 0:01:09]}  Ke4 {[%clk 0:00:04]} 54. b5 {[%clk 0:01:07]}  d3 {[%clk 0:00:03]} 55. a5 {[%clk 0:01:04]}  Ke3 {[%clk 0:00:02]} 56. Re7+ {[%clk 0:01:04]}  Kd4 {[%clk 0:00:03]} 57. b6 {[%clk 0:01:02]}  Rh1+ {[%clk 0:00:02]} 58. Kf2 {[%clk 0:01:03]}  Rh2+ {[%clk 0:00:03]} 59. Kg3 {[%clk 0:01:01]}  Rb2 {[%clk 0:00:03]} 60. Rd7+ {[%clk 0:01:00]}  Ke3 {[%clk 0:00:02]} 61. b7 {[%clk 0:01:00]}  d2 {[%clk 0:00:02]} 62. a6 {[%clk 0:01:00]}  Ke2 {[%clk 0:00:01]} 63. a7 {[%clk 0:00:53]}  Rxb7 {[%clk 0:00:01]} 64. Rxd2+ {[%clk 0:00:53]}  Kxd2 {[%clk 0:00:02]} 65. a8=Q {[%clk 0:00:52]}  Rb3+ {[%clk 0:00:03]} 66. Kf2 {[%clk 0:00:52]}  Rc3 {[%clk 0:00:03]} 67. Qd5+ {[%clk 0:00:52]}  Kc2 {[%clk 0:00:04]} 68. Ke2 {[%clk 0:00:52]}  Kb2 {[%clk 0:00:04]} 69. Qd4 {[%clk 0:00:51]}  Kb3 {[%clk 0:00:05]} 70. Kd2 {[%clk 0:00:50]}  Rc2+ {[%clk 0:00:05]} 71. Kd3 {[%clk 0:00:51]}  Rc6 {[%clk 0:00:04]} 72. Qd5+ {[%clk 0:00:51]} 1-0


[Site "https://www.chess.com"]

[Event "Titled Tuesday Blitz April 25 Early 2023"]
[White "Manukyan, Sargis A."]
[Black "Santos Flores, Alberto"]
[WhiteFideId "13303970"]
[BlackFideId "3601234"]
[WhiteElo "2187"]
[BlackElo "2235"]
[Result "1-0"]
[Round "06"]
[TimeControl "180+2"]
[Date "2023.04.25"]
[WhiteClock "0:01:28"]
[BlackClock "0:01:38"]

1. d4 {[%clk 0:03:00]}  d5 {[%clk 0:02:59]} 2. c4 {[%clk 0:03:00]}  c6 {[%clk 0:03:00]} 3. Nc3 {[%clk 0:02:59]}  Nf6 {[%clk 0:03:00]} 4. e3 {[%clk 0:03:00]}  a6 {[%clk 0:02:59]} 5. Nf3 {[%clk 0:03:00]}  Bf5 {[%clk 0:02:58]} 6. Bd3 {[%clk 0:02:56]}  Bxd3 {[%clk 0:02:58]} 7. Qxd3 {[%clk 0:02:57]}  e6 {[%clk 0:02:58]} 8. O-O {[%clk 0:02:57]}  Nbd7 {[%clk 0:02:58]} 9. e4 {[%clk 0:02:57]}  dxe4 {[%clk 0:02:58]} 10. Nxe4 {[%clk 0:02:58]}  Be7 {[%clk 0:02:58]} 11. Nxf6+ {[%clk 0:02:57]}  Bxf6 {[%clk 0:02:57]} 12. Rd1 {[%clk 0:02:58]}  O-O {[%clk 0:02:56]} 13. b3 {[%clk 0:02:58]}  c5 {[%clk 0:02:54]} 14. Bb2 {[%clk 0:02:58]}  cxd4 {[%clk 0:02:55]} 15. Bxd4 {[%clk 0:02:56]}  Bxd4 {[%clk 0:02:55]} 16. Qxd4 {[%clk 0:02:56]}  Nf6 {[%clk 0:02:55]} 17. Qxd8 {[%clk 0:02:55]}  Rfxd8 {[%clk 0:02:55]} 18. Kf1 {[%clk 0:02:56]}  Kf8 {[%clk 0:02:54]} 19. Ke2 {[%clk 0:02:54]}  Ne4 {[%clk 0:02:52]} 20. Ke3 {[%clk 0:02:50]}  f5 {[%clk 0:02:49]} 21. Nd4 {[%clk 0:02:44]}  Ke7 {[%clk 0:02:49]} 22. f3 {[%clk 0:02:41]}  Nf6 {[%clk 0:02:47]} 23. Ne2 {[%clk 0:02:39]}  e5 {[%clk 0:02:44]} 24. Nc3 {[%clk 0:02:38]}  Rxd1 {[%clk 0:02:41]} 25. Rxd1 {[%clk 0:02:37]}  Rd8 {[%clk 0:02:41]} 26. Rxd8 {[%clk 0:02:37]}  Kxd8 {[%clk 0:02:42]} 27. h3 {[%clk 0:02:28]}  Ke7 {[%clk 0:02:42]} 28. f4 {[%clk 0:02:20]}  Kd6 {[%clk 0:02:38]} 29. b4 {[%clk 0:02:18]}  Nh5 {[%clk 0:02:29]} 30. Ne2 {[%clk 0:02:09]}  g6 {[%clk 0:02:24]} 31. g3 {[%clk 0:01:51]}  Ke6 {[%clk 0:02:21]} 32. a4 {[%clk 0:01:49]}  a5 {[%clk 0:02:15]} 33. bxa5 {[%clk 0:01:40]}  exf4+ {[%clk 0:02:11]} 34. Nxf4+ {[%clk 0:01:34]}  Nxf4 {[%clk 0:02:09]} 35. gxf4 {[%clk 0:01:33]}  h6 {[%clk 0:02:02]} 36. h4 {[%clk 0:01:33]}  Kf6 {[%clk 0:01:51]} 37. c5 {[%clk 0:01:33]}  Ke6 {[%clk 0:01:38]} 38. c6 {[%clk 0:01:28]} 1-0


[Site "https://www.chess.com"]

[Event "Titled Tuesday Blitz April 25 Early 2023"]
[White "Hua, Lefong"]
[Black "Namitbir Singh Walia"]
[WhiteFideId "2602253"]
[BlackFideId "35071068"]
[WhiteElo "2645"]
[BlackElo "2239"]
[Result "1-0"]
[Round "06"]
[TimeControl "180+2"]
[Date "2023.04.25"]
[WhiteClock "0:00:24"]
[BlackClock "0:00:01"]

1. d4 {[%clk 0:03:00]}  Nf6 {[%clk 0:03:00]} 2. c4 {[%clk 0:03:01]}  c5 {[%clk 0:02:59]} 3. d5 {[%clk 0:03:01]}  e6 {[%clk 0:02:59]} 4. Nc3 {[%clk 0:03:01]}  exd5 {[%clk 0:03:00]} 5. cxd5 {[%clk 0:03:02]}  d6 {[%clk 0:03:00]} 6. e4 {[%clk 0:03:02]}  g6 {[%clk 0:03:01]} 7. f4 {[%clk 0:03:03]}  Bg7 {[%clk 0:03:01]} 8. Nf3 {[%clk 0:03:04]}  O-O {[%clk 0:03:01]} 9. Be2 {[%clk 0:03:05]}  Re8 {[%clk 0:03:00]} 10. Nd2 {[%clk 0:03:04]}  Na6 {[%clk 0:02:49]} 11. O-O {[%clk 0:03:03]}  Nc7 {[%clk 0:02:49]} 12. a4 {[%clk 0:03:02]}  b6 {[%clk 0:02:48]} 13. Bf3 {[%clk 0:03:02]}  Bb7 {[%clk 0:02:37]} 14. Re1 {[%clk 0:02:55]}  a6 {[%clk 0:02:36]} 15. Nc4 {[%clk 0:02:40]}  b5 {[%clk 0:02:34]} 16. axb5 {[%clk 0:02:33]}  axb5 {[%clk 0:02:35]} 17. Rxa8 {[%clk 0:02:32]}  Bxa8 {[%clk 0:02:35]} 18. Nb6 {[%clk 0:02:29]}  Bb7 {[%clk 0:02:32]} 19. e5 {[%clk 0:02:27]}  dxe5 {[%clk 0:02:29]} 20. fxe5 {[%clk 0:02:26]}  Nd7 {[%clk 0:02:11]} 21. Nxd7 {[%clk 0:02:19]}  Qxd7 {[%clk 0:02:11]} 22. d6 {[%clk 0:02:13]}  Ne6 {[%clk 0:02:04]} 23. Bxb7 {[%clk 0:02:04]}  Qxb7 {[%clk 0:02:05]} 24. Nd5 {[%clk 0:02:03]}  Nd4 {[%clk 0:01:55]} 25. Ne7+ {[%clk 0:01:48]}  Rxe7 {[%clk 0:01:12]} 26. dxe7 {[%clk 0:01:49]}  Qxe7 {[%clk 0:01:12]} 27. Bf4 {[%clk 0:01:46]}  Qe6 {[%clk 0:00:53]} 28. b4 {[%clk 0:01:33]}  Bf8 {[%clk 0:00:45]} 29. bxc5 {[%clk 0:01:25]}  Bxc5 {[%clk 0:00:46]} 30. Kh1 {[%clk 0:01:23]}  b4 {[%clk 0:00:33]} 31. Qa1 {[%clk 0:01:09]}  Qd5 {[%clk 0:00:22]} 32. Rd1 {[%clk 0:01:05]}  Qe4 {[%clk 0:00:15]} 33. Bg3 {[%clk 0:01:04]}  b3 {[%clk 0:00:13]} 34. Qc1 {[%clk 0:00:50]}  Nc2 {[%clk 0:00:07]} 35. Qh6 {[%clk 0:00:44]}  Nd4 {[%clk 0:00:05]} 36. Qd2 {[%clk 0:00:34]}  Qc2 {[%clk 0:00:05]} 37. Bf2 {[%clk 0:00:23]}  Qxd2 {[%clk 0:00:01]} 38. Rxd2 {[%clk 0:00:24]} 1-0


[Site "https://www.chess.com"]

[Event "Titled Tuesday Blitz April 25 Early 2023"]
[White "Domingo Nunez, Ruben"]
[Black "Mrudul Dehankar"]
[WhiteFideId "22245570"]
[BlackFideId "25096990"]
[WhiteElo "2404"]
[BlackElo "2139"]
[Result "0-1"]
[Round "06"]
[TimeControl "180+2"]
[Date "2023.04.25"]
[WhiteClock "0:00:05"]
[BlackClock "0:00:04"]

1. b3 {[%clk 0:02:59]}  Nf6 {[%clk 0:02:59]} 2. Bb2 {[%clk 0:03:00]}  g6 {[%clk 0:02:57]} 3. Nf3 {[%clk 0:03:00]}  Bg7 {[%clk 0:02:58]} 4. e3 {[%clk 0:03:01]}  d6 {[%clk 0:02:56]} 5. d4 {[%clk 0:03:01]}  b6 {[%clk 0:02:56]} 6. c4 {[%clk 0:03:02]}  Bb7 {[%clk 0:02:56]} 7. Nc3 {[%clk 0:03:03]}  Nbd7 {[%clk 0:02:56]} 8. Be2 {[%clk 0:03:01]}  O-O {[%clk 0:02:57]} 9. O-O {[%clk 0:03:02]}  Qe8 {[%clk 0:02:57]} 10. Qc2 {[%clk 0:02:57]}  e5 {[%clk 0:02:57]} 11. Nb5 {[%clk 0:02:52]}  e4 {[%clk 0:01:29]} 12. Nd2 {[%clk 0:02:50]}  Qd8 {[%clk 0:01:14]} 13. d5 {[%clk 0:02:50]}  Re8 {[%clk 0:01:12]} 14. Rae1 {[%clk 0:02:35]}  a6 {[%clk 0:01:08]} 15. Nd4 {[%clk 0:02:28]}  Ne5 {[%clk 0:01:07]} 16. f3 {[%clk 0:02:11]}  exf3 {[%clk 0:01:00]} 17. N2xf3 {[%clk 0:02:12]}  Neg4 {[%clk 0:00:54]} 18. Bc1 {[%clk 0:02:04]}  Nxe3 {[%clk 0:00:54]} 19. Bxe3 {[%clk 0:02:04]}  Rxe3 {[%clk 0:00:54]} 20. Bd3 {[%clk 0:02:04]}  Ng4 {[%clk 0:00:44]} 21. h3 {[%clk 0:02:00]}  Rxe1 {[%clk 0:00:43]} 22. Rxe1 {[%clk 0:02:01]}  Ne5 {[%clk 0:00:43]} 23. Nxe5 {[%clk 0:02:00]}  dxe5 {[%clk 0:00:29]} 24. Nf3 {[%clk 0:02:01]}  Qd6 {[%clk 0:00:29]} 25. Ng5 {[%clk 0:02:01]}  h6 {[%clk 0:00:23]} 26. Ne4 {[%clk 0:02:01]}  Qd7 {[%clk 0:00:22]} 27. Qf2 {[%clk 0:01:36]}  f5 {[%clk 0:00:21]} 28. Ng3 {[%clk 0:01:36]}  Rf8 {[%clk 0:00:22]} 29. Kh1 {[%clk 0:01:36]}  e4 {[%clk 0:00:21]} 30. Bc2 {[%clk 0:01:36]}  Qd6 {[%clk 0:00:21]} 31. Ne2 {[%clk 0:01:36]}  Be5 {[%clk 0:00:20]} 32. Rd1 {[%clk 0:01:36]}  Qf6 {[%clk 0:00:14]} 33. c5 {[%clk 0:01:31]}  Rd8 {[%clk 0:00:09]} 34. d6 {[%clk 0:01:02]}  bxc5 {[%clk 0:00:07]} 35. dxc7 {[%clk 0:01:02]}  Rxd1+ {[%clk 0:00:07]} 36. Bxd1 {[%clk 0:01:03]}  Qc6 {[%clk 0:00:06]} 37. Qh4 {[%clk 0:01:04]}  Qxc7 {[%clk 0:00:03]} 38. Qxh6 {[%clk 0:01:04]}  Qd6 {[%clk 0:00:04]} 39. Bc2 {[%clk 0:01:03]}  Bg7 {[%clk 0:00:04]} 40. Qg5 {[%clk 0:01:02]}  Qf6 {[%clk 0:00:03]} 41. Qg3 {[%clk 0:01:02]}  Qa1+ {[%clk 0:00:03]} 42. Ng1 {[%clk 0:01:00]}  Bd4 {[%clk 0:00:02]} 43. Qb8+ {[%clk 0:01:00]}  Kh7 {[%clk 0:00:02]} 44. Qc7+ {[%clk 0:00:46]}  Kh6 {[%clk 0:00:01]} 45. Qf4+ {[%clk 0:00:45]}  Kg7 {[%clk 0:00:02]} 46. Qc7+ {[%clk 0:00:45]}  Kh6 {[%clk 0:00:02]} 47. Qf4+ {[%clk 0:00:45]}  g5 {[%clk 0:00:03]} 48. Qd6+ {[%clk 0:00:45]}  Kh7 {[%clk 0:00:03]} 49. Qe7+ {[%clk 0:00:28]}  Kh6 {[%clk 0:00:03]} 50. Qf8+ {[%clk 0:00:28]}  Kg6 {[%clk 0:00:02]} 51. Qg8+ {[%clk 0:00:26]}  Kf6 {[%clk 0:00:02]} 52. Qd8+ {[%clk 0:00:25]}  Ke5 {[%clk 0:00:03]} 53. Qc7+ {[%clk 0:00:25]}  Kf6 {[%clk 0:00:03]} 54. Qd8+ {[%clk 0:00:24]}  Kg6 {[%clk 0:00:03]} 55. Qe8+ {[%clk 0:00:21]}  Kh7 {[%clk 0:00:02]} 56. Qh5+ {[%clk 0:00:20]}  Kg7 {[%clk 0:00:02]} 57. Qxg5+ {[%clk 0:00:20]}  Kh8 {[%clk 0:00:02]} 58. Qd8+ {[%clk 0:00:19]}  Kh7 {[%clk 0:00:02]} 59. Qe7+ {[%clk 0:00:19]}  Kh8 {[%clk 0:00:03]} 60. Qf8+ {[%clk 0:00:18]}  Kh7 {[%clk 0:00:03]} 61. Qxf5+ {[%clk 0:00:19]}  Kg7 {[%clk 0:00:03]} 62. Qg5+ {[%clk 0:00:17]}  Kf7 {[%clk 0:00:03]} 63. Qh5+ {[%clk 0:00:17]}  Ke6 {[%clk 0:00:03]} 64. Bd1 {[%clk 0:00:18]}  Bd5 {[%clk 0:00:01]} 65. Bg4+ {[%clk 0:00:12]}  Kd6 {[%clk 0:00:02]} 66. Qh6+ {[%clk 0:00:12]}  Ke5 {[%clk 0:00:02]} 67. Qg5+ {[%clk 0:00:12]}  Kd6 {[%clk 0:00:02]} 68. Qd8+ {[%clk 0:00:13]}  Ke5 {[%clk 0:00:03]} 69. Qe7+ {[%clk 0:00:13]}  Kf4 {[%clk 0:00:03]} 70. Qf8+ {[%clk 0:00:13]}  Ke3 {[%clk 0:00:03]} 71. Qh6+ {[%clk 0:00:10]}  Kd3 {[%clk 0:00:03]} 72. Be2+ {[%clk 0:00:09]}  Kc3 {[%clk 0:00:04]} 73. Kh2 {[%clk 0:00:03]}  Qxg1+ {[%clk 0:00:04]} 74. Kg3 {[%clk 0:00:04]}  Qf2+ {[%clk 0:00:04]} 75. Kg4 {[%clk 0:00:04]}  Qxg2+ {[%clk 0:00:05]} 76. Kf5 {[%clk 0:00:05]}  Qxe2 {[%clk 0:00:05]} 77. Qxa6 {[%clk 0:00:05]}  Qxa6 {[%clk 0:00:04]} 0-1


[Site "https://www.chess.com"]

[Event "Titled Tuesday Blitz April 25 Early 2023"]
[White "Estrada Nieto, Julian"]
[Black "hakanazeri2"]
[WhiteFideId "5101018"]
[WhiteElo "2161"]
[BlackElo "2636"]
[Result "1-0"]
[Round "06"]
[TimeControl "180+2"]
[Date "2023.04.25"]
[WhiteClock "0:00:06"]
[BlackClock "0:00:06"]

1. e4 {[%clk 0:03:00]}  c5 {[%clk 0:02:59]} 2. Nf3 {[%clk 0:03:01]}  d6 {[%clk 0:02:58]} 3. Bb5+ {[%clk 0:03:01]}  Bd7 {[%clk 0:02:58]} 4. Bxd7+ {[%clk 0:03:01]}  Qxd7 {[%clk 0:02:59]} 5. O-O {[%clk 0:03:01]}  e6 {[%clk 0:02:59]} 6. Re1 {[%clk 0:02:57]}  Nc6 {[%clk 0:02:58]} 7. c3 {[%clk 0:02:58]}  Nf6 {[%clk 0:02:39]} 8. d4 {[%clk 0:02:57]}  cxd4 {[%clk 0:02:40]} 9. cxd4 {[%clk 0:02:57]}  d5 {[%clk 0:02:40]} 10. e5 {[%clk 0:02:58]}  Ne4 {[%clk 0:02:31]} 11. Nbd2 {[%clk 0:02:58]}  Nxd2 {[%clk 0:02:27]} 12. Bxd2 {[%clk 0:02:59]}  Be7 {[%clk 0:02:28]} 13. Rc1 {[%clk 0:02:58]}  Rc8 {[%clk 0:02:27]} 14. Rc3 {[%clk 0:02:57]}  O-O {[%clk 0:02:22]} 15. a3 {[%clk 0:02:57]}  b5 {[%clk 0:02:13]} 16. Rd3 {[%clk 0:02:56]}  b4 {[%clk 0:02:11]} 17. h4 {[%clk 0:02:55]}  Na5 {[%clk 0:02:06]} 18. axb4 {[%clk 0:02:42]}  Qb5 {[%clk 0:02:03]} 19. Bc3 {[%clk 0:02:04]}  Bxb4 {[%clk 0:01:58]} 20. Ng5 {[%clk 0:01:53]}  Bxc3 {[%clk 0:01:53]} 21. bxc3 {[%clk 0:01:49]}  h6 {[%clk 0:01:52]} 22. Nh3 {[%clk 0:01:48]}  Nc4 {[%clk 0:01:35]} 23. Rg3 {[%clk 0:01:43]}  f5 {[%clk 0:01:15]} 24. Nf4 {[%clk 0:01:33]}  Qe8 {[%clk 0:01:09]} 25. Rg6 {[%clk 0:01:23]}  Rc6 {[%clk 0:01:05]} 26. h5 {[%clk 0:01:20]}  Rf7 {[%clk 0:01:01]} 27. Qa4 {[%clk 0:01:07]}  Rfc7 {[%clk 0:00:55]} 28. Rb1 {[%clk 0:01:01]}  Kh7 {[%clk 0:00:46]} 29. Rb5 {[%clk 0:00:42]}  Rb6 {[%clk 0:00:38]} 30. Ra5 {[%clk 0:00:32]}  Qe7 {[%clk 0:00:30]} 31. g3 {[%clk 0:00:16]}  Nxa5 {[%clk 0:00:29]} 32. Qxa5 {[%clk 0:00:16]}  Rb3 {[%clk 0:00:24]} 33. Nxe6 {[%clk 0:00:10]}  Rbxc3 {[%clk 0:00:11]} 34. Rxg7+ {[%clk 0:00:09]}  Qxg7 {[%clk 0:00:12]} 35. Nxg7 {[%clk 0:00:10]}  Kxg7 {[%clk 0:00:13]} 36. Qxd5 {[%clk 0:00:10]}  R3c6 {[%clk 0:00:12]} 37. e6 {[%clk 0:00:10]}  Kf6 {[%clk 0:00:11]} 38. Qe5+ {[%clk 0:00:10]}  Ke7 {[%clk 0:00:12]} 39. Qxf5 {[%clk 0:00:09]}  Rxe6 {[%clk 0:00:12]} 40. d5 {[%clk 0:00:08]}  Rd6 {[%clk 0:00:12]} 41. Qh7+ {[%clk 0:00:07]}  Kd8 {[%clk 0:00:11]} 42. Qg8+ {[%clk 0:00:07]}  Kd7 {[%clk 0:00:12]} 43. Qg7+ {[%clk 0:00:07]}  Kc8 {[%clk 0:00:12]} 44. Qf8+ {[%clk 0:00:07]}  Rd8 {[%clk 0:00:12]} 45. Qb4 {[%clk 0:00:07]}  Rxd5 {[%clk 0:00:11]} 46. Qg4+ {[%clk 0:00:07]}  Rcd7 {[%clk 0:00:11]} 47. Kg2 {[%clk 0:00:06]}  a5 {[%clk 0:00:11]} 48. Qg8+ {[%clk 0:00:06]}  Kb7 {[%clk 0:00:11]} 49. Qe6 {[%clk 0:00:04]}  a4 {[%clk 0:00:10]} 50. Qe3 {[%clk 0:00:04]}  Rd3 {[%clk 0:00:09]} 51. Qc5 {[%clk 0:00:04]}  a3 {[%clk 0:00:08]} 52. Qb4+ {[%clk 0:00:04]}  Kc8 {[%clk 0:00:06]} 53. Qc5+ {[%clk 0:00:04]}  Rc7 {[%clk 0:00:07]} 54. Qf8+ {[%clk 0:00:04]}  Kb7 {[%clk 0:00:05]} 55. Qb4+ {[%clk 0:00:04]}  Ka8 {[%clk 0:00:05]} 56. Qa5+ {[%clk 0:00:04]}  Kb8 {[%clk 0:00:05]} 57. Qb5+ {[%clk 0:00:04]}  Rb7 {[%clk 0:00:04]} 58. Qxd3 {[%clk 0:00:05]}  a2 {[%clk 0:00:04]} 59. Qd8+ {[%clk 0:00:05]}  Ka7 {[%clk 0:00:05]} 60. Qa5+ {[%clk 0:00:05]}  Kb8 {[%clk 0:00:06]} 61. Qxa2 {[%clk 0:00:06]} 1-0


[Site "https://www.chess.com"]

[Event "Titled Tuesday Blitz April 25 Early 2023"]
[White "Bruedigam, Martin"]
[Black "Balla, Tamas-Kristof"]
[WhiteFideId "24608033"]
[BlackFideId "1208497"]
[WhiteElo "2331"]
[BlackElo "2334"]
[Result "1-0"]
[Round "06"]
[TimeControl "180+2"]
[Date "2023.04.25"]
[WhiteClock "0:00:11"]
[BlackClock "0:00:05"]

1. d4 {[%clk 0:02:56]}  d5 {[%clk 0:02:59]} 2. c4 {[%clk 0:02:56]}  e6 {[%clk 0:03:00]} 3. Nc3 {[%clk 0:02:56]}  c5 {[%clk 0:03:00]} 4. Nf3 {[%clk 0:02:44]}  Nf6 {[%clk 0:02:59]} 5. e3 {[%clk 0:02:30]}  Nc6 {[%clk 0:02:58]} 6. a3 {[%clk 0:02:29]}  a6 {[%clk 0:02:58]} 7. dxc5 {[%clk 0:02:28]}  Bxc5 {[%clk 0:02:59]} 8. b4 {[%clk 0:02:28]}  Ba7 {[%clk 0:02:59]} 9. Bb2 {[%clk 0:02:28]}  O-O {[%clk 0:02:59]} 10. cxd5 {[%clk 0:02:23]}  exd5 {[%clk 0:02:58]} 11. Bd3 {[%clk 0:02:20]}  Bg4 {[%clk 0:02:56]} 12. Ne2 {[%clk 0:02:13]}  Re8 {[%clk 0:02:44]} 13. O-O {[%clk 0:02:08]}  Ne4 {[%clk 0:02:36]} 14. Ned4 {[%clk 0:01:40]}  Nxd4 {[%clk 0:02:31]} 15. exd4 {[%clk 0:01:32]}  Qf6 {[%clk 0:02:17]} 16. Be2 {[%clk 0:01:32]}  Qe7 {[%clk 0:02:10]} 17. Re1 {[%clk 0:01:29]}  Rac8 {[%clk 0:01:57]} 18. h3 {[%clk 0:01:25]}  Bh5 {[%clk 0:01:50]} 19. Rc1 {[%clk 0:01:21]}  Rxc1 {[%clk 0:01:46]} 20. Qxc1 {[%clk 0:01:21]}  Bb8 {[%clk 0:01:46]} 21. Ne5 {[%clk 0:01:04]}  Bxe2 {[%clk 0:01:40]} 22. Rxe2 {[%clk 0:01:05]}  h6 {[%clk 0:01:28]} 23. Qe3 {[%clk 0:00:56]}  f6 {[%clk 0:01:17]} 24. Nd3 {[%clk 0:00:53]}  Qd6 {[%clk 0:01:06]} 25. g3 {[%clk 0:00:46]}  Rc8 {[%clk 0:01:06]} 26. Nc5 {[%clk 0:00:45]}  Ng5 {[%clk 0:00:49]} 27. h4 {[%clk 0:00:42]}  Ne4 {[%clk 0:00:33]} 28. Nxb7 {[%clk 0:00:38]}  Qe6 {[%clk 0:00:21]} 29. Nc5 {[%clk 0:00:38]}  Qh3 {[%clk 0:00:22]} 30. Nxe4 {[%clk 0:00:35]}  dxe4 {[%clk 0:00:23]} 31. Qxe4 {[%clk 0:00:34]}  Kh8 {[%clk 0:00:16]} 32. Qe6 {[%clk 0:00:27]}  Qxe6 {[%clk 0:00:14]} 33. Rxe6 {[%clk 0:00:28]}  Rc2 {[%clk 0:00:14]} 34. Re8+ {[%clk 0:00:28]}  Kh7 {[%clk 0:00:14]} 35. Rxb8 {[%clk 0:00:29]}  Rxb2 {[%clk 0:00:15]} 36. Rb6 {[%clk 0:00:29]}  a5 {[%clk 0:00:12]} 37. bxa5 {[%clk 0:00:22]}  Ra2 {[%clk 0:00:12]} 38. Ra6 {[%clk 0:00:18]}  Rd2 {[%clk 0:00:12]} 39. Rd6 {[%clk 0:00:16]}  Rd3 {[%clk 0:00:13]} 40. a6 {[%clk 0:00:14]}  Rxa3 {[%clk 0:00:13]} 41. h5 {[%clk 0:00:14]}  Kg8 {[%clk 0:00:13]} 42. Kg2 {[%clk 0:00:14]}  Kf7 {[%clk 0:00:14]} 43. Rd7+ {[%clk 0:00:14]}  Ke6 {[%clk 0:00:12]} 44. Rxg7 {[%clk 0:00:14]}  Rxa6 {[%clk 0:00:12]} 45. Rg6 {[%clk 0:00:14]}  Ra4 {[%clk 0:00:10]} 46. Rxh6 {[%clk 0:00:14]}  Rxd4 {[%clk 0:00:11]} 47. Rh7 {[%clk 0:00:13]}  Kf5 {[%clk 0:00:11]} 48. Rg7 {[%clk 0:00:13]}  Rd8 {[%clk 0:00:05]} 49. f3 {[%clk 0:00:12]}  Rh8 {[%clk 0:00:05]} 50. g4+ {[%clk 0:00:12]}  Kf4 {[%clk 0:00:06]} 51. Rg6 {[%clk 0:00:12]}  f5 {[%clk 0:00:05]} 52. Rf6 {[%clk 0:00:12]}  Kg5 {[%clk 0:00:04]} 53. Rxf5+ {[%clk 0:00:12]}  Kh4 {[%clk 0:00:05]} 54. Re5 {[%clk 0:00:11]}  Rc8 {[%clk 0:00:05]} 55. Re2 {[%clk 0:00:11]}  Rc6 {[%clk 0:00:04]} 56. Rd2 {[%clk 0:00:11]}  Ra6 {[%clk 0:00:04]} 57. Kf2 {[%clk 0:00:12]}  Rb6 {[%clk 0:00:05]} 58. Rd1 {[%clk 0:00:10]}  Rb2+ {[%clk 0:00:04]} 59. Ke3 {[%clk 0:00:11]}  Rb3+ {[%clk 0:00:05]} 60. Kf4 {[%clk 0:00:11]}  Rb4+ {[%clk 0:00:05]} 61. Ke5 {[%clk 0:00:11]}  Kg3 {[%clk 0:00:06]} 62. h6 {[%clk 0:00:11]}  Rb5+ {[%clk 0:00:06]} 63. Kf6 {[%clk 0:00:11]}  Rb6+ {[%clk 0:00:07]} 64. Kg7 {[%clk 0:00:11]}  Rb7+ {[%clk 0:00:07]} 65. Kg6 {[%clk 0:00:12]}  Rb6+ {[%clk 0:00:07]} 66. Kh5 {[%clk 0:00:12]}  Rb5+ {[%clk 0:00:08]} 67. g5 {[%clk 0:00:12]}  Kxf3 {[%clk 0:00:06]} 68. h7 {[%clk 0:00:12]}  Rb2 {[%clk 0:00:05]} 69. g6 {[%clk 0:00:10]}  Rh2+ {[%clk 0:00:05]} 70. Kg5 {[%clk 0:00:10]}  Rg2+ {[%clk 0:00:05]} 71. Kf6 {[%clk 0:00:10]}  Rf2 {[%clk 0:00:04]} 72. Rd8 {[%clk 0:00:09]}  Kg4+ {[%clk 0:00:03]} 73. Kg7 {[%clk 0:00:09]}  Kg5 {[%clk 0:00:03]} 74. h8=Q {[%clk 0:00:10]}  Ra2 {[%clk 0:00:04]} 75. Qh6+ {[%clk 0:00:10]}  Kg4 {[%clk 0:00:04]} 76. Rd4+ {[%clk 0:00:09]}  Kf3 {[%clk 0:00:04]} 77. Qh3+ {[%clk 0:00:09]}  Kf2 {[%clk 0:00:04]} 78. Qh2+ {[%clk 0:00:10]}  Ke3 {[%clk 0:00:04]} 79. Qxa2 {[%clk 0:00:11]}  Kxd4 {[%clk 0:00:05]} 80. Kf6 {[%clk 0:00:11]}  Ke4 {[%clk 0:00:05]} 1-0


[Site "https://www.chess.com"]